{"text_format":"1","workbook":"xlsx","n_sheets":5,"sheets":["Заказ МБП","search","Справочники","29.09.14","30.09.2014 14.21"],"not_rendered":{"charts":0,"images":0,"macros":1,"external_links":0,"defined_names":3,"comments":0,"pivot_tables":0},"unopened":[],"bounds":{"document_bytes":16777216,"sheet_cells":100000,"rows_first":2000,"rows_last":500,"rows_between":2000,"halvings":0,"cell_chars":16384,"cell_head_chars":4096},"cells_cut":0,"cells_raw":0,"read":"whole","date_system":"1900"}

{"sheet":"Заказ МБП","index":0,"n_rows":550,"n_cols":9,"rows_kept":550,"cut":false,"hidden":false,"merged":[]}
["Наименование","Кол-во","Объем","Цена за ед","Сумма","Поставщик"]
["Активированный уголь BLC LO12x40  фракц, 1-3 мм   ",1,{"$f":"VLOOKUP(A2,search!A1:D500,3,0)","v":50},{"$f":"VLOOKUP(A2,search!A1:D500,2,0)","v":117},{"$f":"B2*C2*D2","v":5850},{"$f":"VLOOKUP(A2,search!A1:D500,4,0)","v":0},null,"Очистить заявку"]
["Дистил",4,{"$f":"VLOOKUP(A3,search!A2:D501,3,0)","v":4},{"$f":"VLOOKUP(A3,search!A2:D501,2,0)","v":1616.54},{"$f":"B3*C3*D3","v":25864.639999999999},{"$f":"VLOOKUP(A3,search!A2:D501,4,0)","v":"ЦКТ,текскепро"}]
["Neutrol A",1,{"$f":"VLOOKUP(A4,search!A3:D502,3,0)","v":25},{"$f":"VLOOKUP(A4,search!A3:D502,2,0)","v":209.26},5231.5,{"$f":"VLOOKUP(A4,search!A3:D502,4,0)","v":"универсум"}]
["Novoclin Fresh AN  усилитель  ",2,{"$f":"VLOOKUP(A5,search!A4:D503,3,0)","v":25},{"$f":"VLOOKUP(A5,search!A4:D503,2,0)","v":479.62},23981,{"$f":"VLOOKUP(A5,search!A4:D503,4,0)","v":"универсум"}]
["Декап",2,{"$f":"VLOOKUP(A6,search!A5:D504,3,0)","v":0},{"$f":"VLOOKUP(A6,search!A5:D504,2,0)","v":784.06},0,{"$f":"VLOOKUP(A6,search!A5:D504,4,0)","v":"текскепро"}]
["Колор Дайм бордовый  Краситель для замши  ",2,{"$f":"VLOOKUP(A7,search!A6:D505,3,0)","v":1},{"$f":"VLOOKUP(A7,search!A6:D505,2,0)","v":1186.3399999999999},2372.6799999999998,{"$f":"VLOOKUP(A7,search!A6:D505,4,0)","v":"текскепро"}]
["Колор Дайм серый  Краситель для замши  ",2,{"$f":"VLOOKUP(A8,search!A7:D506,3,0)","v":1},{"$f":"VLOOKUP(A8,search!A7:D506,2,0)","v":1248.7850000000001},2497.5700000000002,{"$f":"VLOOKUP(A8,search!A7:D506,4,0)","v":"Диана-трест,текскепро"}]
["Колор Хромо Софт жёлтый лимон",2,{"$f":"VLOOKUP(A9,search!A8:D507,3,0)","v":1},{"$f":"VLOOKUP(A9,search!A8:D507,2,0)","v":500},1000,{"$f":"VLOOKUP(A9,search!A8:D507,4,0)","v":"Диана-трест"},null,null,{"$f":"NOW()","v":"2014-09-30T14:25:04.010"}]
["Колор Хромо Софт красная вишня  Краситель для гладкой кожи  ",2,{"$f":"VLOOKUP(A10,search!A9:D508,3,0)","v":1},{"$f":"VLOOKUP(A10,search!A9:D508,2,0)","v":1497.83},2995.66,{"$f":"VLOOKUP(A10,search!A9:D508,4,0)","v":"Диана-трест,текскепро"}]
["LIVAL GLF",1,{"$f":"VLOOKUP(A11,search!A10:D509,3,0)","v":5},{"$f":"VLOOKUP(A11,search!A10:D509,2,0)","v":1218.05},6090.25,{"$f":"VLOOKUP(A11,search!A10:D509,4,0)","v":"Диана-трест"}]
[null,null,{"$f":"VLOOKUP(A12,search!A11:D510,3,0)","v":{"$error":"#N/A"}},{"$f":"VLOOKUP(A12,search!A11:D510,2,0)","v":{"$error":"#N/A"}},{"$error":"#N/A"},{"$f":"VLOOKUP(A12,search!A11:D510,4,0)","v":{"$error":"#N/A"}}]
[null,null,{"$f":"VLOOKUP(A13,search!A12:D511,3,0)","v":{"$error":"#N/A"}},{"$f":"VLOOKUP(A13,search!A12:D511,2,0)","v":{"$error":"#N/A"}},{"$error":"#N/A"},{"$f":"VLOOKUP(A13,search!A12:D511,4,0)","v":{"$error":"#N/A"}}]
[null,null,{"$f":"VLOOKUP(A14,search!A13:D512,3,0)","v":{"$error":"#N/A"}},{"$f":"VLOOKUP(A14,search!A13:D512,2,0)","v":{"$error":"#N/A"}},{"$error":"#N/A"},{"$f":"VLOOKUP(A14,search!A13:D512,4,0)","v":{"$error":"#N/A"}}]
[null,null,{"$f":"VLOOKUP(A15,search!A14:D513,3,0)","v":{"$error":"#N/A"}},{"$f":"VLOOKUP(A15,search!A14:D513,2,0)","v":{"$error":"#N/A"}},{"$error":"#N/A"},{"$f":"VLOOKUP(A15,search!A14:D513,4,0)","v":{"$error":"#N/A"}}]
[null,null,{"$f":"VLOOKUP(A16,search!A15:D514,3,0)","v":{"$error":"#N/A"}},{"$f":"VLOOKUP(A16,search!A15:D514,2,0)","v":{"$error":"#N/A"}},{"$error":"#N/A"},{"$f":"VLOOKUP(A16,search!A15:D514,4,0)","v":{"$error":"#N/A"}}]
[null,null,{"$f":"VLOOKUP(A17,search!A16:D515,3,0)","v":{"$error":"#N/A"}},{"$f":"VLOOKUP(A17,search!A16:D515,2,0)","v":{"$error":"#N/A"}},{"$error":"#N/A"},{"$f":"VLOOKUP(A17,search!A16:D515,4,0)","v":{"$error":"#N/A"}}]
[null,null,{"$f":"VLOOKUP(A18,search!A17:D516,3,0)","v":{"$error":"#N/A"}},{"$f":"VLOOKUP(A18,search!A17:D516,2,0)","v":{"$error":"#N/A"}},{"$error":"#N/A"},{"$f":"VLOOKUP(A18,search!A17:D516,4,0)","v":{"$error":"#N/A"}}]
[null,null,{"$f":"VLOOKUP(A19,search!A18:D517,3,0)","v":{"$error":"#N/A"}},{"$f":"VLOOKUP(A19,search!A18:D517,2,0)","v":{"$error":"#N/A"}},{"$error":"#N/A"},{"$f":"VLOOKUP(A19,search!A18:D517,4,0)","v":{"$error":"#N/A"}}]
[null,null,{"$f":"VLOOKUP(A20,search!A19:D518,3,0)","v":{"$error":"#N/A"}},{"$f":"VLOOKUP(A20,search!A19:D518,2,0)","v":{"$error":"#N/A"}},{"$error":"#N/A"},{"$f":"VLOOKUP(A20,search!A19:D518,4,0)","v":{"$error":"#N/A"}}]
[null,null,{"$f":"VLOOKUP(A21,search!A20:D519,3,0)","v":{"$error":"#N/A"}},{"$f":"VLOOKUP(A21,search!A20:D519,2,0)","v":{"$error":"#N/A"}},{"$error":"#N/A"},{"$f":"VLOOKUP(A21,search!A20:D519,4,0)","v":{"$error":"#N/A"}}]
[null,null,{"$f":"VLOOKUP(A22,search!A21:D520,3,0)","v":{"$error":"#N/A"}},{"$f":"VLOOKUP(A22,search!A21:D520,2,0)","v":{"$error":"#N/A"}},{"$error":"#N/A"},{"$f":"VLOOKUP(A22,search!A21:D520,4,0)","v":{"$error":"#N/A"}}]
[null,null,{"$f":"VLOOKUP(A23,search!A22:D521,3,0)","v":{"$error":"#N/A"}},{"$f":"VLOOKUP(A23,search!A22:D521,2,0)","v":{"$error":"#N/A"}},{"$error":"#N/A"},{"$f":"VLOOKUP(A23,search!A22:D521,4,0)","v":{"$error":"#N/A"}}]
[null,null,{"$f":"VLOOKUP(A24,search!A23:D522,3,0)","v":{"$error":"#N/A"}},{"$f":"VLOOKUP(A24,search!A23:D522,2,0)","v":{"$error":"#N/A"}},{"$error":"#N/A"},{"$f":"VLOOKUP(A24,search!A23:D522,4,0)","v":{"$error":"#N/A"}}]
[null,null,{"$f":"VLOOKUP(A25,search!A24:D523,3,0)","v":{"$error":"#N/A"}},{"$f":"VLOOKUP(A25,search!A24:D523,2,0)","v":{"$error":"#N/A"}},{"$error":"#N/A"},{"$f":"VLOOKUP(A25,search!A24:D523,4,0)","v":{"$error":"#N/A"}}]
[null,null,{"$f":"VLOOKUP(A26,search!A25:D524,3,0)","v":{"$error":"#N/A"}},{"$f":"VLOOKUP(A26,search!A25:D524,2,0)","v":{"$error":"#N/A"}},{"$error":"#N/A"},{"$f":"VLOOKUP(A26,search!A25:D524,4,0)","v":{"$error":"#N/A"}}]
[null,null,{"$f":"VLOOKUP(A27,search!A26:D525,3,0)","v":{"$error":"#N/A"}},{"$f":"VLOOKUP(A27,search!A26:D525,2,0)","v":{"$error":"#N/A"}},{"$error":"#N/A"},{"$f":"VLOOKUP(A27,search!A26:D525,4,0)","v":{"$error":"#N/A"}}]
[null,null,{"$f":"VLOOKUP(A28,search!A27:D526,3,0)","v":{"$error":"#N/A"}},{"$f":"VLOOKUP(A28,search!A27:D526,2,0)","v":{"$error":"#N/A"}},{"$error":"#N/A"},{"$f":"VLOOKUP(A28,search!A27:D526,4,0)","v":{"$error":"#N/A"}}]
[null,null,{"$f":"VLOOKUP(A29,search!A28:D527,3,0)","v":{"$error":"#N/A"}},{"$f":"VLOOKUP(A29,search!A28:D527,2,0)","v":{"$error":"#N/A"}},{"$error":"#N/A"},{"$f":"VLOOKUP(A29,search!A28:D527,4,0)","v":{"$error":"#N/A"}}]
[null,null,{"$f":"VLOOKUP(A30,search!A29:D528,3,0)","v":{"$error":"#N/A"}},{"$f":"VLOOKUP(A30,search!A29:D528,2,0)","v":{"$error":"#N/A"}},{"$error":"#N/A"},{"$f":"VLOOKUP(A30,search!A29:D528,4,0)","v":{"$error":"#N/A"}}]
[null,null,{"$f":"VLOOKUP(A31,search!A30:D529,3,0)","v":{"$error":"#N/A"}},{"$f":"VLOOKUP(A31,search!A30:D529,2,0)","v":{"$error":"#N/A"}},{"$error":"#N/A"},{"$f":"VLOOKUP(A31,search!A30:D529,4,0)","v":{"$error":"#N/A"}}]
[null,null,{"$f":"VLOOKUP(A32,search!A31:D530,3,0)","v":{"$error":"#N/A"}},{"$f":"VLOOKUP(A32,search!A31:D530,2,0)","v":{"$error":"#N/A"}},{"$error":"#N/A"},{"$f":"VLOOKUP(A32,search!A31:D530,4,0)","v":{"$error":"#N/A"}}]
[null,null,{"$f":"VLOOKUP(A33,search!A32:D531,3,0)","v":{"$error":"#N/A"}},{"$f":"VLOOKUP(A33,search!A32:D531,2,0)","v":{"$error":"#N/A"}},{"$error":"#N/A"},{"$f":"VLOOKUP(A33,search!A32:D531,4,0)","v":{"$error":"#N/A"}}]
[null,null,{"$f":"VLOOKUP(A34,search!A33:D532,3,0)","v":{"$error":"#N/A"}},{"$f":"VLOOKUP(A34,search!A33:D532,2,0)","v":{"$error":"#N/A"}},{"$error":"#N/A"},{"$f":"VLOOKUP(A34,search!A33:D532,4,0)","v":{"$error":"#N/A"}}]
[null,null,{"$f":"VLOOKUP(A35,search!A34:D533,3,0)","v":{"$error":"#N/A"}},{"$f":"VLOOKUP(A35,search!A34:D533,2,0)","v":{"$error":"#N/A"}},{"$error":"#N/A"},{"$f":"VLOOKUP(A35,search!A34:D533,4,0)","v":{"$error":"#N/A"}}]
[null,null,{"$f":"VLOOKUP(A36,search!A35:D534,3,0)","v":{"$error":"#N/A"}},{"$f":"VLOOKUP(A36,search!A35:D534,2,0)","v":{"$error":"#N/A"}},{"$error":"#N/A"},{"$f":"VLOOKUP(A36,search!A35:D534,4,0)","v":{"$error":"#N/A"}}]
[null,null,{"$f":"VLOOKUP(A37,search!A36:D535,3,0)","v":{"$error":"#N/A"}},{"$f":"VLOOKUP(A37,search!A36:D535,2,0)","v":{"$error":"#N/A"}},{"$error":"#N/A"},{"$f":"VLOOKUP(A37,search!A36:D535,4,0)","v":{"$error":"#N/A"}}]
[null,null,{"$f":"VLOOKUP(A38,search!A37:D536,3,0)","v":{"$error":"#N/A"}},{"$f":"VLOOKUP(A38,search!A37:D536,2,0)","v":{"$error":"#N/A"}},{"$error":"#N/A"},{"$f":"VLOOKUP(A38,search!A37:D536,4,0)","v":{"$error":"#N/A"}}]
[null,null,{"$f":"VLOOKUP(A39,search!A38:D537,3,0)","v":{"$error":"#N/A"}},{"$f":"VLOOKUP(A39,search!A38:D537,2,0)","v":{"$error":"#N/A"}},{"$error":"#N/A"},{"$f":"VLOOKUP(A39,search!A38:D537,4,0)","v":{"$error":"#N/A"}}]
[null,null,{"$f":"VLOOKUP(A40,search!A39:D538,3,0)","v":{"$error":"#N/A"}},{"$f":"VLOOKUP(A40,search!A39:D538,2,0)","v":{"$error":"#N/A"}},{"$error":"#N/A"},{"$f":"VLOOKUP(A40,search!A39:D538,4,0)","v":{"$error":"#N/A"}}]
[null,null,{"$f":"VLOOKUP(A41,search!A40:D539,3,0)","v":{"$error":"#N/A"}},{"$f":"VLOOKUP(A41,search!A40:D539,2,0)","v":{"$error":"#N/A"}},{"$error":"#N/A"},{"$f":"VLOOKUP(A41,search!A40:D539,4,0)","v":{"$error":"#N/A"}}]
[null,null,{"$f":"VLOOKUP(A42,search!A41:D540,3,0)","v":{"$error":"#N/A"}},{"$f":"VLOOKUP(A42,search!A41:D540,2,0)","v":{"$error":"#N/A"}},{"$error":"#N/A"},{"$f":"VLOOKUP(A42,search!A41:D540,4,0)","v":{"$error":"#N/A"}}]
[null,null,{"$f":"VLOOKUP(A43,search!A42:D541,3,0)","v":{"$error":"#N/A"}},{"$f":"VLOOKUP(A43,search!A42:D541,2,0)","v":{"$error":"#N/A"}},{"$error":"#N/A"},{"$f":"VLOOKUP(A43,search!A42:D541,4,0)","v":{"$error":"#N/A"}}]
[null,null,{"$f":"VLOOKUP(A44,search!A43:D542,3,0)","v":{"$error":"#N/A"}},{"$f":"VLOOKUP(A44,search!A43:D542,2,0)","v":{"$error":"#N/A"}},{"$error":"#N/A"},{"$f":"VLOOKUP(A44,search!A43:D542,4,0)","v":{"$error":"#N/A"}}]
[null,null,{"$f":"VLOOKUP(A45,search!A44:D543,3,0)","v":{"$error":"#N/A"}},{"$f":"VLOOKUP(A45,search!A44:D543,2,0)","v":{"$error":"#N/A"}},{"$error":"#N/A"},{"$f":"VLOOKUP(A45,search!A44:D543,4,0)","v":{"$error":"#N/A"}}]
[null,null,{"$f":"VLOOKUP(A46,search!A45:D544,3,0)","v":{"$error":"#N/A"}},{"$f":"VLOOKUP(A46,search!A45:D544,2,0)","v":{"$error":"#N/A"}},{"$error":"#N/A"},{"$f":"VLOOKUP(A46,search!A45:D544,4,0)","v":{"$error":"#N/A"}}]
[null,null,{"$f":"VLOOKUP(A47,search!A46:D545,3,0)","v":{"$error":"#N/A"}},{"$f":"VLOOKUP(A47,search!A46:D545,2,0)","v":{"$error":"#N/A"}},{"$error":"#N/A"},{"$f":"VLOOKUP(A47,search!A46:D545,4,0)","v":{"$error":"#N/A"}}]
[null,null,{"$f":"VLOOKUP(A48,search!A47:D546,3,0)","v":{"$error":"#N/A"}},{"$f":"VLOOKUP(A48,search!A47:D546,2,0)","v":{"$error":"#N/A"}},{"$error":"#N/A"},{"$f":"VLOOKUP(A48,search!A47:D546,4,0)","v":{"$error":"#N/A"}}]
[null,null,{"$f":"VLOOKUP(A49,search!A48:D547,3,0)","v":{"$error":"#N/A"}},{"$f":"VLOOKUP(A49,search!A48:D547,2,0)","v":{"$error":"#N/A"}},{"$error":"#N/A"},{"$f":"VLOOKUP(A49,search!A48:D547,4,0)","v":{"$error":"#N/A"}}]
[null,null,{"$f":"VLOOKUP(A50,search!A49:D548,3,0)","v":{"$error":"#N/A"}},{"$f":"VLOOKUP(A50,search!A49:D548,2,0)","v":{"$error":"#N/A"}},{"$error":"#N/A"},{"$f":"VLOOKUP(A50,search!A49:D548,4,0)","v":{"$error":"#N/A"}}]
[null,0,null,null,0]
["BASE NAP B2"]
["Bianko Pio"]
["Burlanol"]
["COLOR Х Top coft белый"]
["Candor sec"]
["DC 4354/2"]
["DERGO PEL/A"]
["DL 100"]
["FERROL"]
["FINISH 10"]
["FINISH LUX SP"]
["FIXAMIN PUK"]
["Finish"]
["Frankosol"]
["HF AMMORB,ROSA/20кг, Кондиционер-ополаскиватель"]
["Hydret-1  пятновыводное средство  "]
["Hydret-2"]
["Hydret-3"]
["INGRALUX  наппирующий препарат с жирующим действием  "]
["LIVAL GL - черного цвета №22  краситель для гладкой кожи  "]
["LIVAL GLF"]
["LIVAL LICKER KONZ"]
["LIVAL LO"]
["LIVAL VLF"]
["LIVAL VLF NEW"]
["Liguisan  Жидкий щелочной концентрат для улучшения результатов стирки  "]
["Lival Color GL"]
["Lival LM"]
["NAPPALAN 87 AG"]
["Neutrol A"]
["Neutrol L  Нейтрализатор  "]
["Nostat ASN"]
["Novaclin Fresh KE"]
["Novoclin Fresh AN  усилитель  "]
["Nubuk finish 86"]
["OLISSO Power  Жидкое моющее ср-во для текстильных изделий  "]
["Odosorb Spray"]
["Oxyplex"]
["PERSTABILIZATOR"]
["Penta aktiv"]
["Pentasol Ultra  Активатор для удаления сильных загрязнений  "]
["Piuma Clean"]
["Polysol light"]
["Preperc пятновыводное средство"]
["RepairX Glue 20мл  клей для кожи  "]
["SUPER NAPPANTE"]
["Tenapre Exquisit"]
["Teppich-clean"]
["Toglisudore пятновыводка"]
["Top H"]
["V 1"]
["V 2"]
["V 3  пятновыводное средство  "]
["Viva OLEO"]
["Viva Starch"]
["Viva Zum"]
["WetX Z Licker"]
["ZEFIR SEC"]
["Zeitz-Komplet Set 7*0,25мл  набор пятновыводных средств  "]
["Айяче  отбеливатель для стирки  "]
["Активированный уголь BLC LO12x40  фракц, 1-3 мм   "]
["Ариель"]
["Ас Мульти"]
["Белизна"]
["Био-био Средство для предварительной зачистки текстиля перед стиркой, аквачисткой"]
["Валик  ролик   липкий сменный Plik"]
["Валик ролик   липкий с ручкой"]
["Ваниш"]
["Вернис брил"]
["Вернис глос"]
["Вернис натурел матов"]
["Вешалка 2,3 мм с белым напылением 500шт.  "]
["Деприт 1"]
["Деприт 2"]
["Деприт 3"]
["Детерженте пьюмони LA 31010  Средство для стирки пуховых изделий в воде  "]
["Директ старк"]
["Дистил"]
["Клин Ап"]
["Клип Конц Асепт"]
["Клип Мульти"]
["Колор Дайм Beige"]
["Колор Дайм light brown"]
["Колор Дайм бордовый  Краситель для замши  "]
["Колор Дайм бургунди"]
["Колор Дайм желтый золото"]
["Колор Дайм зеленый"]
["Колор Дайм коричневый светлый  Краситель для замши  "]
["Колор Дайм коричневый темный  Краситель для замши  "]
["Колор Дайм красный"]
["Колор Дайм оранжевый"]
["Колор Дайм охра  Краситель для замши  "]
["Колор Дайм серый  Краситель для замши  "]
["Колор Дайм синий  Краситель для замши  "]
["Колор Дайм черный  Краситель для замши  "]
["Колор Хромо Софт бургунди"]
["Колор Хромо Софт жёлтый лимон"]
["Колор Хромо Софт желто-золото"]
["Колор Хромо Софт зелёный"]
["Колор Хромо Софт коричневый"]
["Колор Хромо Софт красная вишня  Краситель для гладкой кожи  "]
["Колор Хромо Софт оранж"]
["Колор Хромо Софт охра  Краситель для гладкой кожи  "]
["Колор Хромо Софт пурпурный"]
["Колор Хромо Софт светло-красный"]
["Колор Хромо Софт синий"]
["Колор Хромо Софт черный  Краситель для гладкой кожи  "]
["Колор Хромо софт белый"]
["Колор дайм"]
["Колор хромо софт бордово-малиновый"]
["Колор хромо софт красный"]
["Колордайм  Краска для замши    бежевый"]
["Колофикс  предотвращает и удаляет закрасы в водной среде  "]
["Краситель для окраски меха в ручную"]
["Краска для гладкой кожи Хромософт белый  1кг  "]
["Ланадол Авант"]
["Ланадол Актив"]
["Ланадол Апрет"]
["Ланадол Ликер"]
["Ленор"]
["Маркировочная лента"]
["Нубук финиш 86"]
["Нью колор велюр"]
["Олеодерм"]
["Перхлорэтилен"]
["Пренет А"]
["Пренет В"]
["Пренет Пур"]
["Пренет С"]
["Пьюма специальный  препарат кондиционер для аквачистки пуховых изделий  "]
["Пьюмино 18010 LA  Смягчитель для тканей  "]
["Рикончанте амано базе экстра  конц,жирующее  "]
["Сграсанте пер аква TS 27010  Препарат для удаления жировых пятен на текстиле, коже в воде  "]
["Скаттанте антипьега  Ополаскиватель  , Облегчает глажение"]
["Скрепки для степлера Bostitch P3"]
["Степлер Bostitch P3"]
["Титаник LA 20010  Зачистное средство для удаления в вод, среде загрязнений любого типа  "]
["Унистил"]
["Фисаторе нью колор велюр"]
["Хромософт"]
["Шуеде плюс"]
["Эссенция аква  Концентрированная освежающая эссенция для стирки  "]
["Делавон Сол"]
["Био Зим"]
["Биоксиджен"]
["Плума Винд"]
["ПЛума Софт АП"]
["Импертекс ЗЭД"]
["Декап"]
["Viva oxy"]
["Ariel Delta"]
["Ariel Additive Super D 3,1"]
["Ariel Additive Super B 2,1"]
["Lenor Ariel"]
["Налатоп"]
["Стакофлекс"]
["ДАСТ, порошковые блестки"]
["золотой цвет"]
["перламутровый цвет"]
["А-Стронг"]
["Фиссаторе Лана"]
["Тинта соттоне черный"]
["Тинта соттоне синии"]
["Тинта соттоне синий джинс"]
["Пенетранте"]
[0]
[0]
[0]
[0]
[0]
[0]
[0]
[0]
[0]
[0]
[0]
[0]
[0]
[0]
[0]
[0]
[0]
[0]
[0]
[0]
[0]
[0]
[0]
[0]
[0]
[0]
[0]
[0]
[0]
[0]
[0]
[0]
[0]
[0]
[0]
[0]
[0]
[0]
[0]
[0]
[0]
[0]
[0]
[0]
[0]
[0]
[0]
[0]
[0]
[0]
[0]
[0]
[0]
[0]
[0]
[0]
[0]
[0]
[0]
[0]
[0]
[0]
[0]
[0]
[0]
[0]
[0]
[0]
[0]
[0]
[0]
[0]
[0]
[0]
[0]
[0]
[0]
[0]
[0]
[0]
[0]
[0]
[0]
[0]
[0]
[0]
[0]
[0]
[0]
[0]
[0]
[0]
[0]
[0]
[0]
[0]
[0]
[0]
[0]
[0]
[0]
[0]
[0]
[0]
[0]
[0]
[0]
[0]
[0]
[0]
[0]
[0]
[0]
[0]
[0]
[0]
[0]
[0]
[0]
[0]
[0]
[0]
[0]
[0]
[0]
[0]
[0]
[0]
[0]
[0]
[0]
[0]
[0]
[0]
[0]
[0]
[0]
[0]
[0]
[0]
[0]
[0]
[0]
[0]
[0]
[0]
[0]
[0]
[0]
[0]
[0]
[0]
[0]
[0]
[0]
[0]
[0]
[0]
[0]
[0]
[0]
[0]
[0]
[0]
[0]
[0]
[0]
[0]
[0]
[0]
[0]
[0]
[0]
[0]
[0]
[0]
[0]
[0]
[0]
[0]
[0]
[0]
[0]
[0]
[0]
[0]
[0]
[0]
[0]
[0]
[0]
[0]
[0]
[0]
[0]
[0]
[0]
[0]
[0]
[0]
[0]
[0]
[0]
[0]
[0]
[0]
[0]
[0]
[0]
[0]
[0]
[0]
[0]
[0]
[0]
[0]
[0]
[0]
[0]
[0]
[0]
[0]
[0]
[0]
[0]
[0]
[0]
[0]
[0]
[0]
[0]
[0]
[0]
[0]
[0]
[0]
[0]
[0]
[0]
[0]
[0]
[0]
[0]
[0]
[0]
[0]
[0]
[0]
[0]
[0]
[0]
[0]
[0]
[0]
[0]
[0]
[0]
[0]
[0]
[0]
[0]
[0]
[0]
[0]
[0]
[0]
[0]
[0]
[0]
[0]
[0]
[0]
[0]
[0]
[0]
[0]
[0]
[0]
[0]
[0]
[0]
[0]
[0]
[0]
[0]
[0]
[0]
[0]
[0]
[0]
[0]
[0]
[0]
[0]
[0]
[0]
[0]
[0]
[0]
[0]
[0]
[0]
[0]
[0]
[0]
[0]
[0]
[0]
[0]
[0]
[0]
[0]
[0]
[0]
[0]
[0]
[0]
[0]
[0]
[0]
[0]
[0]
[0]
[0]
[0]
[0]
[0]
[0]
[0]
[0]
[0]
[0]
[0]
[0]

{"sheet":"search","index":1,"n_rows":166,"n_cols":4,"rows_kept":166,"cut":false,"hidden":false,"merged":[]}
["Наименование","Цена","Объем","Поставщики"]
["BASE NAP B2",5.0000000000000001E-3]
["Bianko Pio",445]
["Burlanol",528.37800000000004]
["COLOR Х Top coft белый",0.03]
["Candor sec",454.464]
["DC 4354/2",355.93299999999999]
["DERGO PEL/A",1E-3]
["DL 100",2E-3]
["FERROL",0.02]
["FINISH 10",5.0000000000000001E-3]
["FINISH LUX SP",3.0000000000000001E-3]
["FIXAMIN PUK",2327,1,"Диана-трест"]
["Finish",204.95,10]
["Frankosol",704,5,"универсум,ЦКТ"]
["HF AMMORB,ROSA/20кг, Кондиционер-ополаскиватель",105.65,20,"Диана-трест"]
["Hydret-1  пятновыводное средство  ",640.27,5,"универсум"]
["Hydret-2",581.27,5,"универсум"]
["Hydret-3",513.41800000000001,5,"универсум"]
["INGRALUX  наппирующий препарат с жирующим действием  ",1192.3,10,"Сана ооо"]
["LIVAL GL - черного цвета №22  краситель для гладкой кожи  ",1379.85,1,"Диана-трест"]
["LIVAL GLF",1218.05,5,"Диана-трест"]
["LIVAL LICKER KONZ",466.4,20]
["LIVAL LO",1E-3,20,"интернешнл инастриал ком"]
["LIVAL VLF",509.1,20,"ЦКТ"]
["LIVAL VLF NEW",null,20]
["Liguisan  Жидкий щелочной концентрат для улучшения результатов стирки  ",121.77,30,"Диана-трест"]
["Lival Color GL",967,1]
["Lival LM",316.89,20]
["NAPPALAN 87 AG",740,5,"Велкон,ЦКТ,Бест-Сервис"]
["Neutrol A",209.26,25,"универсум"]
["Neutrol L  Нейтрализатор  ",270,5,"ЦКТ"]
["Nostat ASN",1E-3]
["Novaclin Fresh KE",409.84,25,"универсум"]
["Novoclin Fresh AN  усилитель  ",479.62,25,"универсум"]
["Nubuk finish 86",0,5]
["OLISSO Power  Жидкое моющее ср-во для текстильных изделий  ",213.15,35,"Диана-трест"]
["Odosorb Spray",934.56]
["Oxyplex",149.75899999999999,25,"Диана-трест"]
["PERSTABILIZATOR",0.01,1]
["Penta aktiv",133.96,30,"Диана-трест"]
["Pentasol Ultra  Активатор для удаления сильных загрязнений  ",342.37,null,"Диана-трест"]
["Piuma Clean",188.096,10]
["Polysol light",0.01]
["Preperc пятновыводное средство",291.07,1]
["RepairX Glue 20мл  клей для кожи  ",1159.73]
["SUPER NAPPANTE",1110]
["Tenapre Exquisit",0.01,30]
["Teppich-clean",0.01]
["Toglisudore пятновыводка",484.35]
["Top H",1219.5,1,"Сана ооо"]
["V 1",2E-3,5,"универсум"]
["V 2",1E-3,5,"универсум"]
["V 3  пятновыводное средство  ",628.70000000000005,5,"универсум"]
["Viva OLEO",1E-3]
["Viva Starch",265.38,30,"универсум"]
["Viva Zum",8.0000000000000002E-3,5]
["WetX Z Licker",1E-3,10]
["ZEFIR SEC",930,5]
["Zeitz-Komplet Set 7*0,25мл  набор пятновыводных средств  ",2073.85,1]
["Айяче  отбеливатель для стирки  ",452.42,5]
["Активированный уголь BLC LO12x40  фракц, 1-3 мм   ",117,50]
["Ариель",68,15,"ЗАЙЦЕВ"]
["Ас Мульти",4.2000000000000003E-2]
["Белизна",33.590000000000003,1,"избайт"]
["Био-био Средство для предварительной зачистки текстиля перед стиркой, аквачисткой",286.52,10,"Бест-сервис"]
["Валик  ролик   липкий сменный Plik",142,1,"текскепро"]
["Валик ролик   липкий с ручкой",135,1,"текскепро"]
["Ваниш",156.85,1,"избайт"]
["Вернис брил",666.06,1]
["Вернис глос",941.01,1]
["Вернис натурел матов",1132.8699999999999,1]
["Вешалка 2,3 мм с белым напылением 500шт.  ",1749.94,1,"ГК аккорд"]
["Деприт 1",8.0000000000000002E-3,5]
["Деприт 2",1.7000000000000001E-2,5]
["Деприт 3",5.0000000000000001E-3,5]
["Детерженте пьюмони LA 31010  Средство для стирки пуховых изделий в воде  ",261,10,"Бест-сервис"]
["Директ старк",2E-3,10]
["Дистил",1616.54,4,"ЦКТ,текскепро"]
["Клин Ап",7.0000000000000001E-3]
["Клип Конц Асепт",393.66,22,"текскепро"]
["Клип Мульти",1E-3,25]
["Колор Дайм Beige",1368.23,1,"Диана-трест,текскепро"]
["Колор Дайм light brown",1000,1,"Диана-трест"]
["Колор Дайм бордовый  Краситель для замши  ",1186.3399999999999,1,"текскепро"]
["Колор Дайм бургунди","1,0",1,"Диана-трест"]
["Колор Дайм желтый золото",1186.3399999999999,1,"Диана-трест,текскепро"]
["Колор Дайм зеленый","1186,34",1,"Диана-трест,текскепро"]
["Колор Дайм коричневый светлый  Краситель для замши  ",1094.48,1,"Диана-трест,текскепро"]
["Колор Дайм коричневый темный  Краситель для замши  ",901.74,1,"Диана-трест,текскепро"]
["Колор Дайм красный",1107.24,1,"Диана-трест,текскепро"]
["Колор Дайм оранжевый",1000,1,"Диана-трест"]
["Колор Дайм охра  Краситель для замши  ",980.08,1,"Диана-трест,текскепро"]
["Колор Дайм серый  Краситель для замши  ",1248.7850000000001,1,"Диана-трест,текскепро"]
["Колор Дайм синий  Краситель для замши  ",1065.69,1,"Диана-трест,текскепро"]
["Колор Дайм черный  Краситель для замши  ",901.74,1,"Диана-трест,текскепро"]
["Колор Хромо Софт бургунди",500,1,"Диана-трест,текскепро"]
["Колор Хромо Софт жёлтый лимон",500,1,"Диана-трест"]
["Колор Хромо Софт желто-золото",1233.52,1,"Диана-трест,текскепро"]
["Колор Хромо Софт зелёный",1302.05,1,"Диана-трест,текскепро"]
["Колор Хромо Софт коричневый",1243.1199999999999,1,"Диана-трест,текскепро"]
["Колор Хромо Софт красная вишня  Краситель для гладкой кожи  ",1497.83,1,"Диана-трест,текскепро"]
["Колор Хромо Софт оранж",1000,1,"Диана-трест,текскепро"]
["Колор Хромо Софт охра  Краситель для гладкой кожи  ",1142.1400000000001,1,"Диана-трест,текскепро"]
["Колор Хромо Софт пурпурный",500,1,"Диана-трест"]
["Колор Хромо Софт светло-красный",1494.31,1,"Диана-трест,текскепро"]
["Колор Хромо Софт синий",1302.5,1,"Диана-трест,текскепро"]
["Колор Хромо Софт черный  Краситель для гладкой кожи  ",1050.78,1,"Диана-трест,текскепро"]
["Колор Хромо софт белый",1217.06,1,"текскепро,универсум"]
["Колор дайм",799.24599999999998,1,"Диана-трест"]
["Колор хромо софт бордово-малиновый",1510.38,1,"текскепро,диана-трест"]
["Колор хромо софт красный",1182.04,1,"Диана-трест"]
["Колордайм  Краска для замши    бежевый",1632,1,"ЦКТ"]
["Колофикс  предотвращает и удаляет закрасы в водной среде  ",922.88,5,"текскепро"]
["Краситель для окраски меха в ручную",6808.5,1]
["Краска для гладкой кожи Хромософт белый  1кг  ",1710,1,"ЦКТ"]
["Ланадол Авант",257.2,24,"текскепро"]
["Ланадол Актив",306.45,24,"текскепро"]
["Ланадол Апрет",1E-3]
["Ланадол Ликер",1E-3]
["Ленор",106.45,2,"избайт"]
["Маркировочная лента",540]
["Нубук финиш 86",485,5]
["Нью колор велюр",2422.5859999999998]
["Олеодерм",300.08,22,"текскепро"]
["Перхлорэтилен",105,330,"УНИВЕРСАЛ,,БИНА-ГРУ"]
["Пренет А",506.73,4.5,"текскепро"]
["Пренет В",449.67,4.5,"Текскепро,ЦКТ"]
["Пренет Пур",279.58999999999997,22,"текскепро"]
["Пренет С",466,4.5,"текскепро"]
["Пьюма специальный  препарат кондиционер для аквачистки пуховых изделий  ",265.5,10,"Бест-сервис"]
["Пьюмино 18010 LA  Смягчитель для тканей  ",177.84,10,"Бест-сервис"]
["Рикончанте амано базе экстра  конц,жирующее  ",477,1,"Бест-сервис"]
["Сграсанте пер аква TS 27010  Препарат для удаления жировых пятен на текстиле, коже в воде  ",449.45,10,"Бест-сервис"]
["Скаттанте антипьега  Ополаскиватель  , Облегчает глажение",649.70000000000005,10,"Бест-сервис"]
["Скрепки для степлера Bostitch P3",129.602,1]
["Степлер Bostitch P3",1975.91,1]
["Титаник LA 20010  Зачистное средство для удаления в вод, среде загрязнений любого типа  ",279,10,"Бест-сервис"]
["Унистил",2.9000000000000001E-2]
["Фисаторе нью колор велюр",308.5]
["Хромософт",487.15,1]
["Шуеде плюс",318.10000000000002,5,"Текскепро,ЦКТ"]
["Эссенция аква  Концентрированная освежающая эссенция для стирки  ",1021.5,1,"Бест-сервис"]
["Делавон Сол",351,10,"велкон,ЦКТ"]
["Био Зим",360,null,"велкон"]
["Биоксиджен",385,10,"велкон,ЦКТ"]
["Плума Винд",270,10,"велкон,ЦКТ"]
["ПЛума Софт АП",310,10,"велкон"]
["Импертекс ЗЭД"]
["Декап",784.06,null,"текскепро"]
["Viva oxy",190.28,30,"универсум"]
["Ariel Delta",170.45,20,"ЗАЙЦЕВ"]
["Ariel Additive Super D 3,1",386.47,20,"ЗАЙЦЕВ"]
["Ariel Additive Super B 2,1",158.28,20,"ЗАЙЦЕВ"]
["Lenor Ariel",null,20,"ЗАЙЦЕВ"]
["Налатоп",1024.7,1,"текскепро"]
["Стакофлекс",5.19,1,"текскепро"]
["ДАСТ, порошковые блестки",null,null,"текскепро"]
["золотой цвет",17.38,1,"текскепро"]
["перламутровый цвет",15.08,1,"текскепро"]
["А-Стронг",275,10,"велкон"]
["Фиссаторе Лана",null,2]
["Тинта соттоне черный",1362.9,1,"Бест-сервис"]
["Тинта соттоне синии",1644.72,1,"Бест-сервис"]
["Тинта соттоне синий джинс",null,1,"Бест-сервис"]
["Пенетранте",null,1,"Бест-сервис"]

{"sheet":"Справочники","index":2,"n_rows":2,"n_cols":2,"rows_kept":2,"cut":false,"hidden":false,"merged":[]}
["Поставщики"]
["Наименование","Телефон"]

{"sheet":"29.09.14","index":3,"n_rows":550,"n_cols":9,"rows_kept":550,"cut":false,"hidden":false,"merged":[]}
["Наименование","Кол-во","Объем","Цена за ед","Сумма","Поставщик"]
["Активированный уголь BLC LO12x40  фракц, 1-3 мм   ",1,{"$f":"VLOOKUP(A2,search!A1:D500,3,0)","v":50},{"$f":"VLOOKUP(A2,search!A1:D500,2,0)","v":117},{"$f":"B2*C2*D2","v":5850},{"$f":"VLOOKUP(A2,search!A1:D500,4,0)","v":0},null,"Очистить заявку"]
["Дистил",4,{"$f":"VLOOKUP(A3,search!A2:D501,3,0)","v":4},{"$f":"VLOOKUP(A3,search!A2:D501,2,0)","v":1616.54},{"$f":"B3*C3*D3","v":25864.639999999999},{"$f":"VLOOKUP(A3,search!A2:D501,4,0)","v":"ЦКТ,текскепро"}]
["Neutrol A",1,{"$f":"VLOOKUP(A4,search!A3:D502,3,0)","v":25},{"$f":"VLOOKUP(A4,search!A3:D502,2,0)","v":209.26},5231.5,{"$f":"VLOOKUP(A4,search!A3:D502,4,0)","v":"универсум"}]
["Novoclin Fresh AN  усилитель  ",2,{"$f":"VLOOKUP(A5,search!A4:D503,3,0)","v":25},{"$f":"VLOOKUP(A5,search!A4:D503,2,0)","v":479.62},23981,{"$f":"VLOOKUP(A5,search!A4:D503,4,0)","v":"универсум"}]
["Декап",2,{"$f":"VLOOKUP(A6,search!A5:D504,3,0)","v":0},{"$f":"VLOOKUP(A6,search!A5:D504,2,0)","v":784.06},0,{"$f":"VLOOKUP(A6,search!A5:D504,4,0)","v":"текскепро"}]
["Колор Дайм бордовый  Краситель для замши  ",2,{"$f":"VLOOKUP(A7,search!A6:D505,3,0)","v":1},{"$f":"VLOOKUP(A7,search!A6:D505,2,0)","v":1186.3399999999999},2372.6799999999998,{"$f":"VLOOKUP(A7,search!A6:D505,4,0)","v":"текскепро"}]
["Колор Дайм серый  Краситель для замши  ",2,{"$f":"VLOOKUP(A8,search!A7:D506,3,0)","v":1},{"$f":"VLOOKUP(A8,search!A7:D506,2,0)","v":1248.7850000000001},2497.5700000000002,{"$f":"VLOOKUP(A8,search!A7:D506,4,0)","v":"Диана-трест,текскепро"}]
["Колор Хромо Софт жёлтый лимон",2,{"$f":"VLOOKUP(A9,search!A8:D507,3,0)","v":1},{"$f":"VLOOKUP(A9,search!A8:D507,2,0)","v":500},1000,{"$f":"VLOOKUP(A9,search!A8:D507,4,0)","v":"Диана-трест"},null,null,{"$f":"NOW()","v":"2014-09-30T14:25:04.010"}]
["Колор Хромо Софт красная вишня  Краситель для гладкой кожи  ",2,{"$f":"VLOOKUP(A10,search!A9:D508,3,0)","v":1},{"$f":"VLOOKUP(A10,search!A9:D508,2,0)","v":1497.83},2995.66,{"$f":"VLOOKUP(A10,search!A9:D508,4,0)","v":"Диана-трест,текскепро"}]
["LIVAL GLF",1,{"$f":"VLOOKUP(A11,search!A10:D509,3,0)","v":5},{"$f":"VLOOKUP(A11,search!A10:D509,2,0)","v":1218.05},6090.25,{"$f":"VLOOKUP(A11,search!A10:D509,4,0)","v":"Диана-трест"}]
[null,null,{"$f":"VLOOKUP(A12,search!A11:D510,3,0)","v":{"$error":"#N/A"}},{"$f":"VLOOKUP(A12,search!A11:D510,2,0)","v":{"$error":"#N/A"}},{"$error":"#N/A"},{"$f":"VLOOKUP(A12,search!A11:D510,4,0)","v":{"$error":"#N/A"}}]
[null,null,{"$f":"VLOOKUP(A13,search!A12:D511,3,0)","v":{"$error":"#N/A"}},{"$f":"VLOOKUP(A13,search!A12:D511,2,0)","v":{"$error":"#N/A"}},{"$error":"#N/A"},{"$f":"VLOOKUP(A13,search!A12:D511,4,0)","v":{"$error":"#N/A"}}]
[null,null,{"$f":"VLOOKUP(A14,search!A13:D512,3,0)","v":{"$error":"#N/A"}},{"$f":"VLOOKUP(A14,search!A13:D512,2,0)","v":{"$error":"#N/A"}},{"$error":"#N/A"},{"$f":"VLOOKUP(A14,search!A13:D512,4,0)","v":{"$error":"#N/A"}}]
[null,null,{"$f":"VLOOKUP(A15,search!A14:D513,3,0)","v":{"$error":"#N/A"}},{"$f":"VLOOKUP(A15,search!A14:D513,2,0)","v":{"$error":"#N/A"}},{"$error":"#N/A"},{"$f":"VLOOKUP(A15,search!A14:D513,4,0)","v":{"$error":"#N/A"}}]
[null,null,{"$f":"VLOOKUP(A16,search!A15:D514,3,0)","v":{"$error":"#N/A"}},{"$f":"VLOOKUP(A16,search!A15:D514,2,0)","v":{"$error":"#N/A"}},{"$error":"#N/A"},{"$f":"VLOOKUP(A16,search!A15:D514,4,0)","v":{"$error":"#N/A"}}]
[null,null,{"$f":"VLOOKUP(A17,search!A16:D515,3,0)","v":{"$error":"#N/A"}},{"$f":"VLOOKUP(A17,search!A16:D515,2,0)","v":{"$error":"#N/A"}},{"$error":"#N/A"},{"$f":"VLOOKUP(A17,search!A16:D515,4,0)","v":{"$error":"#N/A"}}]
[null,null,{"$f":"VLOOKUP(A18,search!A17:D516,3,0)","v":{"$error":"#N/A"}},{"$f":"VLOOKUP(A18,search!A17:D516,2,0)","v":{"$error":"#N/A"}},{"$error":"#N/A"},{"$f":"VLOOKUP(A18,search!A17:D516,4,0)","v":{"$error":"#N/A"}}]
[null,null,{"$f":"VLOOKUP(A19,search!A18:D517,3,0)","v":{"$error":"#N/A"}},{"$f":"VLOOKUP(A19,search!A18:D517,2,0)","v":{"$error":"#N/A"}},{"$error":"#N/A"},{"$f":"VLOOKUP(A19,search!A18:D517,4,0)","v":{"$error":"#N/A"}}]
[null,null,{"$f":"VLOOKUP(A20,search!A19:D518,3,0)","v":{"$error":"#N/A"}},{"$f":"VLOOKUP(A20,search!A19:D518,2,0)","v":{"$error":"#N/A"}},{"$error":"#N/A"},{"$f":"VLOOKUP(A20,search!A19:D518,4,0)","v":{"$error":"#N/A"}}]
[null,null,{"$f":"VLOOKUP(A21,search!A20:D519,3,0)","v":{"$error":"#N/A"}},{"$f":"VLOOKUP(A21,search!A20:D519,2,0)","v":{"$error":"#N/A"}},{"$error":"#N/A"},{"$f":"VLOOKUP(A21,search!A20:D519,4,0)","v":{"$error":"#N/A"}}]
[null,null,{"$f":"VLOOKUP(A22,search!A21:D520,3,0)","v":{"$error":"#N/A"}},{"$f":"VLOOKUP(A22,search!A21:D520,2,0)","v":{"$error":"#N/A"}},{"$error":"#N/A"},{"$f":"VLOOKUP(A22,search!A21:D520,4,0)","v":{"$error":"#N/A"}}]
[null,null,{"$f":"VLOOKUP(A23,search!A22:D521,3,0)","v":{"$error":"#N/A"}},{"$f":"VLOOKUP(A23,search!A22:D521,2,0)","v":{"$error":"#N/A"}},{"$error":"#N/A"},{"$f":"VLOOKUP(A23,search!A22:D521,4,0)","v":{"$error":"#N/A"}}]
[null,null,{"$f":"VLOOKUP(A24,search!A23:D522,3,0)","v":{"$error":"#N/A"}},{"$f":"VLOOKUP(A24,search!A23:D522,2,0)","v":{"$error":"#N/A"}},{"$error":"#N/A"},{"$f":"VLOOKUP(A24,search!A23:D522,4,0)","v":{"$error":"#N/A"}}]
[null,null,{"$f":"VLOOKUP(A25,search!A24:D523,3,0)","v":{"$error":"#N/A"}},{"$f":"VLOOKUP(A25,search!A24:D523,2,0)","v":{"$error":"#N/A"}},{"$error":"#N/A"},{"$f":"VLOOKUP(A25,search!A24:D523,4,0)","v":{"$error":"#N/A"}}]
[null,null,{"$f":"VLOOKUP(A26,search!A25:D524,3,0)","v":{"$error":"#N/A"}},{"$f":"VLOOKUP(A26,search!A25:D524,2,0)","v":{"$error":"#N/A"}},{"$error":"#N/A"},{"$f":"VLOOKUP(A26,search!A25:D524,4,0)","v":{"$error":"#N/A"}}]
[null,null,{"$f":"VLOOKUP(A27,search!A26:D525,3,0)","v":{"$error":"#N/A"}},{"$f":"VLOOKUP(A27,search!A26:D525,2,0)","v":{"$error":"#N/A"}},{"$error":"#N/A"},{"$f":"VLOOKUP(A27,search!A26:D525,4,0)","v":{"$error":"#N/A"}}]
[null,null,{"$f":"VLOOKUP(A28,search!A27:D526,3,0)","v":{"$error":"#N/A"}},{"$f":"VLOOKUP(A28,search!A27:D526,2,0)","v":{"$error":"#N/A"}},{"$error":"#N/A"},{"$f":"VLOOKUP(A28,search!A27:D526,4,0)","v":{"$error":"#N/A"}}]
[null,null,{"$f":"VLOOKUP(A29,search!A28:D527,3,0)","v":{"$error":"#N/A"}},{"$f":"VLOOKUP(A29,search!A28:D527,2,0)","v":{"$error":"#N/A"}},{"$error":"#N/A"},{"$f":"VLOOKUP(A29,search!A28:D527,4,0)","v":{"$error":"#N/A"}}]
[null,null,{"$f":"VLOOKUP(A30,search!A29:D528,3,0)","v":{"$error":"#N/A"}},{"$f":"VLOOKUP(A30,search!A29:D528,2,0)","v":{"$error":"#N/A"}},{"$error":"#N/A"},{"$f":"VLOOKUP(A30,search!A29:D528,4,0)","v":{"$error":"#N/A"}}]
[null,null,{"$f":"VLOOKUP(A31,search!A30:D529,3,0)","v":{"$error":"#N/A"}},{"$f":"VLOOKUP(A31,search!A30:D529,2,0)","v":{"$error":"#N/A"}},{"$error":"#N/A"},{"$f":"VLOOKUP(A31,search!A30:D529,4,0)","v":{"$error":"#N/A"}}]
[null,null,{"$f":"VLOOKUP(A32,search!A31:D530,3,0)","v":{"$error":"#N/A"}},{"$f":"VLOOKUP(A32,search!A31:D530,2,0)","v":{"$error":"#N/A"}},{"$error":"#N/A"},{"$f":"VLOOKUP(A32,search!A31:D530,4,0)","v":{"$error":"#N/A"}}]
[null,null,{"$f":"VLOOKUP(A33,search!A32:D531,3,0)","v":{"$error":"#N/A"}},{"$f":"VLOOKUP(A33,search!A32:D531,2,0)","v":{"$error":"#N/A"}},{"$error":"#N/A"},{"$f":"VLOOKUP(A33,search!A32:D531,4,0)","v":{"$error":"#N/A"}}]
[null,null,{"$f":"VLOOKUP(A34,search!A33:D532,3,0)","v":{"$error":"#N/A"}},{"$f":"VLOOKUP(A34,search!A33:D532,2,0)","v":{"$error":"#N/A"}},{"$error":"#N/A"},{"$f":"VLOOKUP(A34,search!A33:D532,4,0)","v":{"$error":"#N/A"}}]
[null,null,{"$f":"VLOOKUP(A35,search!A34:D533,3,0)","v":{"$error":"#N/A"}},{"$f":"VLOOKUP(A35,search!A34:D533,2,0)","v":{"$error":"#N/A"}},{"$error":"#N/A"},{"$f":"VLOOKUP(A35,search!A34:D533,4,0)","v":{"$error":"#N/A"}}]
[null,null,{"$f":"VLOOKUP(A36,search!A35:D534,3,0)","v":{"$error":"#N/A"}},{"$f":"VLOOKUP(A36,search!A35:D534,2,0)","v":{"$error":"#N/A"}},{"$error":"#N/A"},{"$f":"VLOOKUP(A36,search!A35:D534,4,0)","v":{"$error":"#N/A"}}]
[null,null,{"$f":"VLOOKUP(A37,search!A36:D535,3,0)","v":{"$error":"#N/A"}},{"$f":"VLOOKUP(A37,search!A36:D535,2,0)","v":{"$error":"#N/A"}},{"$error":"#N/A"},{"$f":"VLOOKUP(A37,search!A36:D535,4,0)","v":{"$error":"#N/A"}}]
[null,null,{"$f":"VLOOKUP(A38,search!A37:D536,3,0)","v":{"$error":"#N/A"}},{"$f":"VLOOKUP(A38,search!A37:D536,2,0)","v":{"$error":"#N/A"}},{"$error":"#N/A"},{"$f":"VLOOKUP(A38,search!A37:D536,4,0)","v":{"$error":"#N/A"}}]
[null,null,{"$f":"VLOOKUP(A39,search!A38:D537,3,0)","v":{"$error":"#N/A"}},{"$f":"VLOOKUP(A39,search!A38:D537,2,0)","v":{"$error":"#N/A"}},{"$error":"#N/A"},{"$f":"VLOOKUP(A39,search!A38:D537,4,0)","v":{"$error":"#N/A"}}]
[null,null,{"$f":"VLOOKUP(A40,search!A39:D538,3,0)","v":{"$error":"#N/A"}},{"$f":"VLOOKUP(A40,search!A39:D538,2,0)","v":{"$error":"#N/A"}},{"$error":"#N/A"},{"$f":"VLOOKUP(A40,search!A39:D538,4,0)","v":{"$error":"#N/A"}}]
[null,null,{"$f":"VLOOKUP(A41,search!A40:D539,3,0)","v":{"$error":"#N/A"}},{"$f":"VLOOKUP(A41,search!A40:D539,2,0)","v":{"$error":"#N/A"}},{"$error":"#N/A"},{"$f":"VLOOKUP(A41,search!A40:D539,4,0)","v":{"$error":"#N/A"}}]
[null,null,{"$f":"VLOOKUP(A42,search!A41:D540,3,0)","v":{"$error":"#N/A"}},{"$f":"VLOOKUP(A42,search!A41:D540,2,0)","v":{"$error":"#N/A"}},{"$error":"#N/A"},{"$f":"VLOOKUP(A42,search!A41:D540,4,0)","v":{"$error":"#N/A"}}]
[null,null,{"$f":"VLOOKUP(A43,search!A42:D541,3,0)","v":{"$error":"#N/A"}},{"$f":"VLOOKUP(A43,search!A42:D541,2,0)","v":{"$error":"#N/A"}},{"$error":"#N/A"},{"$f":"VLOOKUP(A43,search!A42:D541,4,0)","v":{"$error":"#N/A"}}]
[null,null,{"$f":"VLOOKUP(A44,search!A43:D542,3,0)","v":{"$error":"#N/A"}},{"$f":"VLOOKUP(A44,search!A43:D542,2,0)","v":{"$error":"#N/A"}},{"$error":"#N/A"},{"$f":"VLOOKUP(A44,search!A43:D542,4,0)","v":{"$error":"#N/A"}}]
[null,null,{"$f":"VLOOKUP(A45,search!A44:D543,3,0)","v":{"$error":"#N/A"}},{"$f":"VLOOKUP(A45,search!A44:D543,2,0)","v":{"$error":"#N/A"}},{"$error":"#N/A"},{"$f":"VLOOKUP(A45,search!A44:D543,4,0)","v":{"$error":"#N/A"}}]
[null,null,{"$f":"VLOOKUP(A46,search!A45:D544,3,0)","v":{"$error":"#N/A"}},{"$f":"VLOOKUP(A46,search!A45:D544,2,0)","v":{"$error":"#N/A"}},{"$error":"#N/A"},{"$f":"VLOOKUP(A46,search!A45:D544,4,0)","v":{"$error":"#N/A"}}]
[null,null,{"$f":"VLOOKUP(A47,search!A46:D545,3,0)","v":{"$error":"#N/A"}},{"$f":"VLOOKUP(A47,search!A46:D545,2,0)","v":{"$error":"#N/A"}},{"$error":"#N/A"},{"$f":"VLOOKUP(A47,search!A46:D545,4,0)","v":{"$error":"#N/A"}}]
[null,null,{"$f":"VLOOKUP(A48,search!A47:D546,3,0)","v":{"$error":"#N/A"}},{"$f":"VLOOKUP(A48,search!A47:D546,2,0)","v":{"$error":"#N/A"}},{"$error":"#N/A"},{"$f":"VLOOKUP(A48,search!A47:D546,4,0)","v":{"$error":"#N/A"}}]
[null,null,{"$f":"VLOOKUP(A49,search!A48:D547,3,0)","v":{"$error":"#N/A"}},{"$f":"VLOOKUP(A49,search!A48:D547,2,0)","v":{"$error":"#N/A"}},{"$error":"#N/A"},{"$f":"VLOOKUP(A49,search!A48:D547,4,0)","v":{"$error":"#N/A"}}]
[null,null,{"$f":"VLOOKUP(A50,search!A49:D548,3,0)","v":{"$error":"#N/A"}},{"$f":"VLOOKUP(A50,search!A49:D548,2,0)","v":{"$error":"#N/A"}},{"$error":"#N/A"},{"$f":"VLOOKUP(A50,search!A49:D548,4,0)","v":{"$error":"#N/A"}}]
[null,0,null,null,0]
["BASE NAP B2"]
["Bianko Pio"]
["Burlanol"]
["COLOR Х Top coft белый"]
["Candor sec"]
["DC 4354/2"]
["DERGO PEL/A"]
["DL 100"]
["FERROL"]
["FINISH 10"]
["FINISH LUX SP"]
["FIXAMIN PUK"]
["Finish"]
["Frankosol"]
["HF AMMORB,ROSA/20кг, Кондиционер-ополаскиватель"]
["Hydret-1  пятновыводное средство  "]
["Hydret-2"]
["Hydret-3"]
["INGRALUX  наппирующий препарат с жирующим действием  "]
["LIVAL GL - черного цвета №22  краситель для гладкой кожи  "]
["LIVAL GLF"]
["LIVAL LICKER KONZ"]
["LIVAL LO"]
["LIVAL VLF"]
["LIVAL VLF NEW"]
["Liguisan  Жидкий щелочной концентрат для улучшения результатов стирки  "]
["Lival Color GL"]
["Lival LM"]
["NAPPALAN 87 AG"]
["Neutrol A"]
["Neutrol L  Нейтрализатор  "]
["Nostat ASN"]
["Novaclin Fresh KE"]
["Novoclin Fresh AN  усилитель  "]
["Nubuk finish 86"]
["OLISSO Power  Жидкое моющее ср-во для текстильных изделий  "]
["Odosorb Spray"]
["Oxyplex"]
["PERSTABILIZATOR"]
["Penta aktiv"]
["Pentasol Ultra  Активатор для удаления сильных загрязнений  "]
["Piuma Clean"]
["Polysol light"]
["Preperc пятновыводное средство"]
["RepairX Glue 20мл  клей для кожи  "]
["SUPER NAPPANTE"]
["Tenapre Exquisit"]
["Teppich-clean"]
["Toglisudore пятновыводка"]
["Top H"]
["V 1"]
["V 2"]
["V 3  пятновыводное средство  "]
["Viva OLEO"]
["Viva Starch"]
["Viva Zum"]
["WetX Z Licker"]
["ZEFIR SEC"]
["Zeitz-Komplet Set 7*0,25мл  набор пятновыводных средств  "]
["Айяче  отбеливатель для стирки  "]
["Активированный уголь BLC LO12x40  фракц, 1-3 мм   "]
["Ариель"]
["Ас Мульти"]
["Белизна"]
["Био-био Средство для предварительной зачистки текстиля перед стиркой, аквачисткой"]
["Валик  ролик   липкий сменный Plik"]
["Валик ролик   липкий с ручкой"]
["Ваниш"]
["Вернис брил"]
["Вернис глос"]
["Вернис натурел матов"]
["Вешалка 2,3 мм с белым напылением 500шт.  "]
["Деприт 1"]
["Деприт 2"]
["Деприт 3"]
["Детерженте пьюмони LA 31010  Средство для стирки пуховых изделий в воде  "]
["Директ старк"]
["Дистил"]
["Клин Ап"]
["Клип Конц Асепт"]
["Клип Мульти"]
["Колор Дайм Beige"]
["Колор Дайм light brown"]
["Колор Дайм бордовый  Краситель для замши  "]
["Колор Дайм бургунди"]
["Колор Дайм желтый золото"]
["Колор Дайм зеленый"]
["Колор Дайм коричневый светлый  Краситель для замши  "]
["Колор Дайм коричневый темный  Краситель для замши  "]
["Колор Дайм красный"]
["Колор Дайм оранжевый"]
["Колор Дайм охра  Краситель для замши  "]
["Колор Дайм серый  Краситель для замши  "]
["Колор Дайм синий  Краситель для замши  "]
["Колор Дайм черный  Краситель для замши  "]
["Колор Хромо Софт бургунди"]
["Колор Хромо Софт жёлтый лимон"]
["Колор Хромо Софт желто-золото"]
["Колор Хромо Софт зелёный"]
["Колор Хромо Софт коричневый"]
["Колор Хромо Софт красная вишня  Краситель для гладкой кожи  "]
["Колор Хромо Софт оранж"]
["Колор Хромо Софт охра  Краситель для гладкой кожи  "]
["Колор Хромо Софт пурпурный"]
["Колор Хромо Софт светло-красный"]
["Колор Хромо Софт синий"]
["Колор Хромо Софт черный  Краситель для гладкой кожи  "]
["Колор Хромо софт белый"]
["Колор дайм"]
["Колор хромо софт бордово-малиновый"]
["Колор хромо софт красный"]
["Колордайм  Краска для замши    бежевый"]
["Колофикс  предотвращает и удаляет закрасы в водной среде  "]
["Краситель для окраски меха в ручную"]
["Краска для гладкой кожи Хромософт белый  1кг  "]
["Ланадол Авант"]
["Ланадол Актив"]
["Ланадол Апрет"]
["Ланадол Ликер"]
["Ленор"]
["Маркировочная лента"]
["Нубук финиш 86"]
["Нью колор велюр"]
["Олеодерм"]
["Перхлорэтилен"]
["Пренет А"]
["Пренет В"]
["Пренет Пур"]
["Пренет С"]
["Пьюма специальный  препарат кондиционер для аквачистки пуховых изделий  "]
["Пьюмино 18010 LA  Смягчитель для тканей  "]
["Рикончанте амано базе экстра  конц,жирующее  "]
["Сграсанте пер аква TS 27010  Препарат для удаления жировых пятен на текстиле, коже в воде  "]
["Скаттанте антипьега  Ополаскиватель  , Облегчает глажение"]
["Скрепки для степлера Bostitch P3"]
["Степлер Bostitch P3"]
["Титаник LA 20010  Зачистное средство для удаления в вод, среде загрязнений любого типа  "]
["Унистил"]
["Фисаторе нью колор велюр"]
["Хромософт"]
["Шуеде плюс"]
["Эссенция аква  Концентрированная освежающая эссенция для стирки  "]
["Делавон Сол"]
["Био Зим"]
["Биоксиджен"]
["Плума Винд"]
["ПЛума Софт АП"]
["Импертекс ЗЭД"]
["Декап"]
["Viva oxy"]
["Ariel Delta"]
["Ariel Additive Super D 3,1"]
["Ariel Additive Super B 2,1"]
["Lenor Ariel"]
["Налатоп"]
["Стакофлекс"]
["ДАСТ, порошковые блестки"]
["золотой цвет"]
["перламутровый цвет"]
["А-Стронг"]
["Фиссаторе Лана"]
["Тинта соттоне черный"]
["Тинта соттоне синии"]
["Тинта соттоне синий джинс"]
["Пенетранте"]
[0]
[0]
[0]
[0]
[0]
[0]
[0]
[0]
[0]
[0]
[0]
[0]
[0]
[0]
[0]
[0]
[0]
[0]
[0]
[0]
[0]
[0]
[0]
[0]
[0]
[0]
[0]
[0]
[0]
[0]
[0]
[0]
[0]
[0]
[0]
[0]
[0]
[0]
[0]
[0]
[0]
[0]
[0]
[0]
[0]
[0]
[0]
[0]
[0]
[0]
[0]
[0]
[0]
[0]
[0]
[0]
[0]
[0]
[0]
[0]
[0]
[0]
[0]
[0]
[0]
[0]
[0]
[0]
[0]
[0]
[0]
[0]
[0]
[0]
[0]
[0]
[0]
[0]
[0]
[0]
[0]
[0]
[0]
[0]
[0]
[0]
[0]
[0]
[0]
[0]
[0]
[0]
[0]
[0]
[0]
[0]
[0]
[0]
[0]
[0]
[0]
[0]
[0]
[0]
[0]
[0]
[0]
[0]
[0]
[0]
[0]
[0]
[0]
[0]
[0]
[0]
[0]
[0]
[0]
[0]
[0]
[0]
[0]
[0]
[0]
[0]
[0]
[0]
[0]
[0]
[0]
[0]
[0]
[0]
[0]
[0]
[0]
[0]
[0]
[0]
[0]
[0]
[0]
[0]
[0]
[0]
[0]
[0]
[0]
[0]
[0]
[0]
[0]
[0]
[0]
[0]
[0]
[0]
[0]
[0]
[0]
[0]
[0]
[0]
[0]
[0]
[0]
[0]
[0]
[0]
[0]
[0]
[0]
[0]
[0]
[0]
[0]
[0]
[0]
[0]
[0]
[0]
[0]
[0]
[0]
[0]
[0]
[0]
[0]
[0]
[0]
[0]
[0]
[0]
[0]
[0]
[0]
[0]
[0]
[0]
[0]
[0]
[0]
[0]
[0]
[0]
[0]
[0]
[0]
[0]
[0]
[0]
[0]
[0]
[0]
[0]
[0]
[0]
[0]
[0]
[0]
[0]
[0]
[0]
[0]
[0]
[0]
[0]
[0]
[0]
[0]
[0]
[0]
[0]
[0]
[0]
[0]
[0]
[0]
[0]
[0]
[0]
[0]
[0]
[0]
[0]
[0]
[0]
[0]
[0]
[0]
[0]
[0]
[0]
[0]
[0]
[0]
[0]
[0]
[0]
[0]
[0]
[0]
[0]
[0]
[0]
[0]
[0]
[0]
[0]
[0]
[0]
[0]
[0]
[0]
[0]
[0]
[0]
[0]
[0]
[0]
[0]
[0]
[0]
[0]
[0]
[0]
[0]
[0]
[0]
[0]
[0]
[0]
[0]
[0]
[0]
[0]
[0]
[0]
[0]
[0]
[0]
[0]
[0]
[0]
[0]
[0]
[0]
[0]
[0]
[0]
[0]
[0]
[0]
[0]
[0]
[0]
[0]
[0]
[0]
[0]
[0]
[0]
[0]
[0]
[0]
[0]
[0]
[0]
[0]
[0]
[0]
[0]
[0]

{"sheet":"30.09.2014 14.21","index":4,"n_rows":550,"n_cols":9,"rows_kept":550,"cut":false,"hidden":false,"merged":[]}
["Наименование","Кол-во","Объем","Цена за ед","Сумма","Поставщик"]
["Активированный уголь BLC LO12x40  фракц, 1-3 мм   ",1,{"$f":"VLOOKUP(A2,search!A1:D500,3,0)","v":50},{"$f":"VLOOKUP(A2,search!A1:D500,2,0)","v":117},{"$f":"B2*C2*D2","v":5850},{"$f":"VLOOKUP(A2,search!A1:D500,4,0)","v":0}]
["Дистил",4,{"$f":"VLOOKUP(A3,search!A2:D501,3,0)","v":4},{"$f":"VLOOKUP(A3,search!A2:D501,2,0)","v":1616.54},{"$f":"B3*C3*D3","v":25864.639999999999},{"$f":"VLOOKUP(A3,search!A2:D501,4,0)","v":"ЦКТ,текскепро"}]
["Neutrol A",1,{"$f":"VLOOKUP(A4,search!A3:D502,3,0)","v":25},{"$f":"VLOOKUP(A4,search!A3:D502,2,0)","v":209.26},5231.5,{"$f":"VLOOKUP(A4,search!A3:D502,4,0)","v":"универсум"}]
["Novoclin Fresh AN  усилитель  ",2,{"$f":"VLOOKUP(A5,search!A4:D503,3,0)","v":25},{"$f":"VLOOKUP(A5,search!A4:D503,2,0)","v":479.62},23981,{"$f":"VLOOKUP(A5,search!A4:D503,4,0)","v":"универсум"}]
["Декап",2,{"$f":"VLOOKUP(A6,search!A5:D504,3,0)","v":0},{"$f":"VLOOKUP(A6,search!A5:D504,2,0)","v":784.06},0,{"$f":"VLOOKUP(A6,search!A5:D504,4,0)","v":"текскепро"}]
["Колор Дайм бордовый  Краситель для замши  ",2,{"$f":"VLOOKUP(A7,search!A6:D505,3,0)","v":1},{"$f":"VLOOKUP(A7,search!A6:D505,2,0)","v":1186.3399999999999},2372.6799999999998,{"$f":"VLOOKUP(A7,search!A6:D505,4,0)","v":"текскепро"}]
["Колор Дайм серый  Краситель для замши  ",2,{"$f":"VLOOKUP(A8,search!A7:D506,3,0)","v":1},{"$f":"VLOOKUP(A8,search!A7:D506,2,0)","v":1248.7850000000001},2497.5700000000002,{"$f":"VLOOKUP(A8,search!A7:D506,4,0)","v":"Диана-трест,текскепро"}]
["Колор Хромо Софт жёлтый лимон",2,{"$f":"VLOOKUP(A9,search!A8:D507,3,0)","v":1},{"$f":"VLOOKUP(A9,search!A8:D507,2,0)","v":500},1000,{"$f":"VLOOKUP(A9,search!A8:D507,4,0)","v":"Диана-трест"},null,null,{"$f":"NOW()","v":"2014-09-30T14:25:04.010"}]
["Колор Хромо Софт красная вишня  Краситель для гладкой кожи  ",2,{"$f":"VLOOKUP(A10,search!A9:D508,3,0)","v":1},{"$f":"VLOOKUP(A10,search!A9:D508,2,0)","v":1497.83},2995.66,{"$f":"VLOOKUP(A10,search!A9:D508,4,0)","v":"Диана-трест,текскепро"}]
["LIVAL GLF",1,{"$f":"VLOOKUP(A11,search!A10:D509,3,0)","v":5},{"$f":"VLOOKUP(A11,search!A10:D509,2,0)","v":1218.05},6090.25,{"$f":"VLOOKUP(A11,search!A10:D509,4,0)","v":"Диана-трест"}]
[null,null,{"$f":"VLOOKUP(A12,search!A11:D510,3,0)","v":{"$error":"#N/A"}},{"$f":"VLOOKUP(A12,search!A11:D510,2,0)","v":{"$error":"#N/A"}},{"$error":"#N/A"},{"$f":"VLOOKUP(A12,search!A11:D510,4,0)","v":{"$error":"#N/A"}}]
[null,null,{"$f":"VLOOKUP(A13,search!A12:D511,3,0)","v":{"$error":"#N/A"}},{"$f":"VLOOKUP(A13,search!A12:D511,2,0)","v":{"$error":"#N/A"}},{"$error":"#N/A"},{"$f":"VLOOKUP(A13,search!A12:D511,4,0)","v":{"$error":"#N/A"}}]
[null,null,{"$f":"VLOOKUP(A14,search!A13:D512,3,0)","v":{"$error":"#N/A"}},{"$f":"VLOOKUP(A14,search!A13:D512,2,0)","v":{"$error":"#N/A"}},{"$error":"#N/A"},{"$f":"VLOOKUP(A14,search!A13:D512,4,0)","v":{"$error":"#N/A"}}]
[null,null,{"$f":"VLOOKUP(A15,search!A14:D513,3,0)","v":{"$error":"#N/A"}},{"$f":"VLOOKUP(A15,search!A14:D513,2,0)","v":{"$error":"#N/A"}},{"$error":"#N/A"},{"$f":"VLOOKUP(A15,search!A14:D513,4,0)","v":{"$error":"#N/A"}}]
[null,null,{"$f":"VLOOKUP(A16,search!A15:D514,3,0)","v":{"$error":"#N/A"}},{"$f":"VLOOKUP(A16,search!A15:D514,2,0)","v":{"$error":"#N/A"}},{"$error":"#N/A"},{"$f":"VLOOKUP(A16,search!A15:D514,4,0)","v":{"$error":"#N/A"}}]
[null,null,{"$f":"VLOOKUP(A17,search!A16:D515,3,0)","v":{"$error":"#N/A"}},{"$f":"VLOOKUP(A17,search!A16:D515,2,0)","v":{"$error":"#N/A"}},{"$error":"#N/A"},{"$f":"VLOOKUP(A17,search!A16:D515,4,0)","v":{"$error":"#N/A"}}]
[null,null,{"$f":"VLOOKUP(A18,search!A17:D516,3,0)","v":{"$error":"#N/A"}},{"$f":"VLOOKUP(A18,search!A17:D516,2,0)","v":{"$error":"#N/A"}},{"$error":"#N/A"},{"$f":"VLOOKUP(A18,search!A17:D516,4,0)","v":{"$error":"#N/A"}}]
[null,null,{"$f":"VLOOKUP(A19,search!A18:D517,3,0)","v":{"$error":"#N/A"}},{"$f":"VLOOKUP(A19,search!A18:D517,2,0)","v":{"$error":"#N/A"}},{"$error":"#N/A"},{"$f":"VLOOKUP(A19,search!A18:D517,4,0)","v":{"$error":"#N/A"}}]
[null,null,{"$f":"VLOOKUP(A20,search!A19:D518,3,0)","v":{"$error":"#N/A"}},{"$f":"VLOOKUP(A20,search!A19:D518,2,0)","v":{"$error":"#N/A"}},{"$error":"#N/A"},{"$f":"VLOOKUP(A20,search!A19:D518,4,0)","v":{"$error":"#N/A"}}]
[null,null,{"$f":"VLOOKUP(A21,search!A20:D519,3,0)","v":{"$error":"#N/A"}},{"$f":"VLOOKUP(A21,search!A20:D519,2,0)","v":{"$error":"#N/A"}},{"$error":"#N/A"},{"$f":"VLOOKUP(A21,search!A20:D519,4,0)","v":{"$error":"#N/A"}}]
[null,null,{"$f":"VLOOKUP(A22,search!A21:D520,3,0)","v":{"$error":"#N/A"}},{"$f":"VLOOKUP(A22,search!A21:D520,2,0)","v":{"$error":"#N/A"}},{"$error":"#N/A"},{"$f":"VLOOKUP(A22,search!A21:D520,4,0)","v":{"$error":"#N/A"}}]
[null,null,{"$f":"VLOOKUP(A23,search!A22:D521,3,0)","v":{"$error":"#N/A"}},{"$f":"VLOOKUP(A23,search!A22:D521,2,0)","v":{"$error":"#N/A"}},{"$error":"#N/A"},{"$f":"VLOOKUP(A23,search!A22:D521,4,0)","v":{"$error":"#N/A"}}]
[null,null,{"$f":"VLOOKUP(A24,search!A23:D522,3,0)","v":{"$error":"#N/A"}},{"$f":"VLOOKUP(A24,search!A23:D522,2,0)","v":{"$error":"#N/A"}},{"$error":"#N/A"},{"$f":"VLOOKUP(A24,search!A23:D522,4,0)","v":{"$error":"#N/A"}}]
[null,null,{"$f":"VLOOKUP(A25,search!A24:D523,3,0)","v":{"$error":"#N/A"}},{"$f":"VLOOKUP(A25,search!A24:D523,2,0)","v":{"$error":"#N/A"}},{"$error":"#N/A"},{"$f":"VLOOKUP(A25,search!A24:D523,4,0)","v":{"$error":"#N/A"}}]
[null,null,{"$f":"VLOOKUP(A26,search!A25:D524,3,0)","v":{"$error":"#N/A"}},{"$f":"VLOOKUP(A26,search!A25:D524,2,0)","v":{"$error":"#N/A"}},{"$error":"#N/A"},{"$f":"VLOOKUP(A26,search!A25:D524,4,0)","v":{"$error":"#N/A"}}]
[null,null,{"$f":"VLOOKUP(A27,search!A26:D525,3,0)","v":{"$error":"#N/A"}},{"$f":"VLOOKUP(A27,search!A26:D525,2,0)","v":{"$error":"#N/A"}},{"$error":"#N/A"},{"$f":"VLOOKUP(A27,search!A26:D525,4,0)","v":{"$error":"#N/A"}}]
[null,null,{"$f":"VLOOKUP(A28,search!A27:D526,3,0)","v":{"$error":"#N/A"}},{"$f":"VLOOKUP(A28,search!A27:D526,2,0)","v":{"$error":"#N/A"}},{"$error":"#N/A"},{"$f":"VLOOKUP(A28,search!A27:D526,4,0)","v":{"$error":"#N/A"}}]
[null,null,{"$f":"VLOOKUP(A29,search!A28:D527,3,0)","v":{"$error":"#N/A"}},{"$f":"VLOOKUP(A29,search!A28:D527,2,0)","v":{"$error":"#N/A"}},{"$error":"#N/A"},{"$f":"VLOOKUP(A29,search!A28:D527,4,0)","v":{"$error":"#N/A"}}]
[null,null,{"$f":"VLOOKUP(A30,search!A29:D528,3,0)","v":{"$error":"#N/A"}},{"$f":"VLOOKUP(A30,search!A29:D528,2,0)","v":{"$error":"#N/A"}},{"$error":"#N/A"},{"$f":"VLOOKUP(A30,search!A29:D528,4,0)","v":{"$error":"#N/A"}}]
[null,null,{"$f":"VLOOKUP(A31,search!A30:D529,3,0)","v":{"$error":"#N/A"}},{"$f":"VLOOKUP(A31,search!A30:D529,2,0)","v":{"$error":"#N/A"}},{"$error":"#N/A"},{"$f":"VLOOKUP(A31,search!A30:D529,4,0)","v":{"$error":"#N/A"}}]
[null,null,{"$f":"VLOOKUP(A32,search!A31:D530,3,0)","v":{"$error":"#N/A"}},{"$f":"VLOOKUP(A32,search!A31:D530,2,0)","v":{"$error":"#N/A"}},{"$error":"#N/A"},{"$f":"VLOOKUP(A32,search!A31:D530,4,0)","v":{"$error":"#N/A"}}]
[null,null,{"$f":"VLOOKUP(A33,search!A32:D531,3,0)","v":{"$error":"#N/A"}},{"$f":"VLOOKUP(A33,search!A32:D531,2,0)","v":{"$error":"#N/A"}},{"$error":"#N/A"},{"$f":"VLOOKUP(A33,search!A32:D531,4,0)","v":{"$error":"#N/A"}}]
[null,null,{"$f":"VLOOKUP(A34,search!A33:D532,3,0)","v":{"$error":"#N/A"}},{"$f":"VLOOKUP(A34,search!A33:D532,2,0)","v":{"$error":"#N/A"}},{"$error":"#N/A"},{"$f":"VLOOKUP(A34,search!A33:D532,4,0)","v":{"$error":"#N/A"}}]
[null,null,{"$f":"VLOOKUP(A35,search!A34:D533,3,0)","v":{"$error":"#N/A"}},{"$f":"VLOOKUP(A35,search!A34:D533,2,0)","v":{"$error":"#N/A"}},{"$error":"#N/A"},{"$f":"VLOOKUP(A35,search!A34:D533,4,0)","v":{"$error":"#N/A"}}]
[null,null,{"$f":"VLOOKUP(A36,search!A35:D534,3,0)","v":{"$error":"#N/A"}},{"$f":"VLOOKUP(A36,search!A35:D534,2,0)","v":{"$error":"#N/A"}},{"$error":"#N/A"},{"$f":"VLOOKUP(A36,search!A35:D534,4,0)","v":{"$error":"#N/A"}}]
[null,null,{"$f":"VLOOKUP(A37,search!A36:D535,3,0)","v":{"$error":"#N/A"}},{"$f":"VLOOKUP(A37,search!A36:D535,2,0)","v":{"$error":"#N/A"}},{"$error":"#N/A"},{"$f":"VLOOKUP(A37,search!A36:D535,4,0)","v":{"$error":"#N/A"}}]
[null,null,{"$f":"VLOOKUP(A38,search!A37:D536,3,0)","v":{"$error":"#N/A"}},{"$f":"VLOOKUP(A38,search!A37:D536,2,0)","v":{"$error":"#N/A"}},{"$error":"#N/A"},{"$f":"VLOOKUP(A38,search!A37:D536,4,0)","v":{"$error":"#N/A"}}]
[null,null,{"$f":"VLOOKUP(A39,search!A38:D537,3,0)","v":{"$error":"#N/A"}},{"$f":"VLOOKUP(A39,search!A38:D537,2,0)","v":{"$error":"#N/A"}},{"$error":"#N/A"},{"$f":"VLOOKUP(A39,search!A38:D537,4,0)","v":{"$error":"#N/A"}}]
[null,null,{"$f":"VLOOKUP(A40,search!A39:D538,3,0)","v":{"$error":"#N/A"}},{"$f":"VLOOKUP(A40,search!A39:D538,2,0)","v":{"$error":"#N/A"}},{"$error":"#N/A"},{"$f":"VLOOKUP(A40,search!A39:D538,4,0)","v":{"$error":"#N/A"}}]
[null,null,{"$f":"VLOOKUP(A41,search!A40:D539,3,0)","v":{"$error":"#N/A"}},{"$f":"VLOOKUP(A41,search!A40:D539,2,0)","v":{"$error":"#N/A"}},{"$error":"#N/A"},{"$f":"VLOOKUP(A41,search!A40:D539,4,0)","v":{"$error":"#N/A"}}]
[null,null,{"$f":"VLOOKUP(A42,search!A41:D540,3,0)","v":{"$error":"#N/A"}},{"$f":"VLOOKUP(A42,search!A41:D540,2,0)","v":{"$error":"#N/A"}},{"$error":"#N/A"},{"$f":"VLOOKUP(A42,search!A41:D540,4,0)","v":{"$error":"#N/A"}}]
[null,null,{"$f":"VLOOKUP(A43,search!A42:D541,3,0)","v":{"$error":"#N/A"}},{"$f":"VLOOKUP(A43,search!A42:D541,2,0)","v":{"$error":"#N/A"}},{"$error":"#N/A"},{"$f":"VLOOKUP(A43,search!A42:D541,4,0)","v":{"$error":"#N/A"}}]
[null,null,{"$f":"VLOOKUP(A44,search!A43:D542,3,0)","v":{"$error":"#N/A"}},{"$f":"VLOOKUP(A44,search!A43:D542,2,0)","v":{"$error":"#N/A"}},{"$error":"#N/A"},{"$f":"VLOOKUP(A44,search!A43:D542,4,0)","v":{"$error":"#N/A"}}]
[null,null,{"$f":"VLOOKUP(A45,search!A44:D543,3,0)","v":{"$error":"#N/A"}},{"$f":"VLOOKUP(A45,search!A44:D543,2,0)","v":{"$error":"#N/A"}},{"$error":"#N/A"},{"$f":"VLOOKUP(A45,search!A44:D543,4,0)","v":{"$error":"#N/A"}}]
[null,null,{"$f":"VLOOKUP(A46,search!A45:D544,3,0)","v":{"$error":"#N/A"}},{"$f":"VLOOKUP(A46,search!A45:D544,2,0)","v":{"$error":"#N/A"}},{"$error":"#N/A"},{"$f":"VLOOKUP(A46,search!A45:D544,4,0)","v":{"$error":"#N/A"}}]
[null,null,{"$f":"VLOOKUP(A47,search!A46:D545,3,0)","v":{"$error":"#N/A"}},{"$f":"VLOOKUP(A47,search!A46:D545,2,0)","v":{"$error":"#N/A"}},{"$error":"#N/A"},{"$f":"VLOOKUP(A47,search!A46:D545,4,0)","v":{"$error":"#N/A"}}]
[null,null,{"$f":"VLOOKUP(A48,search!A47:D546,3,0)","v":{"$error":"#N/A"}},{"$f":"VLOOKUP(A48,search!A47:D546,2,0)","v":{"$error":"#N/A"}},{"$error":"#N/A"},{"$f":"VLOOKUP(A48,search!A47:D546,4,0)","v":{"$error":"#N/A"}}]
[null,null,{"$f":"VLOOKUP(A49,search!A48:D547,3,0)","v":{"$error":"#N/A"}},{"$f":"VLOOKUP(A49,search!A48:D547,2,0)","v":{"$error":"#N/A"}},{"$error":"#N/A"},{"$f":"VLOOKUP(A49,search!A48:D547,4,0)","v":{"$error":"#N/A"}}]
[null,null,{"$f":"VLOOKUP(A50,search!A49:D548,3,0)","v":{"$error":"#N/A"}},{"$f":"VLOOKUP(A50,search!A49:D548,2,0)","v":{"$error":"#N/A"}},{"$error":"#N/A"},{"$f":"VLOOKUP(A50,search!A49:D548,4,0)","v":{"$error":"#N/A"}}]
[null,0,null,null,0]
["BASE NAP B2"]
["Bianko Pio"]
["Burlanol"]
["COLOR Х Top coft белый"]
["Candor sec"]
["DC 4354/2"]
["DERGO PEL/A"]
["DL 100"]
["FERROL"]
["FINISH 10"]
["FINISH LUX SP"]
["FIXAMIN PUK"]
["Finish"]
["Frankosol"]
["HF AMMORB,ROSA/20кг, Кондиционер-ополаскиватель"]
["Hydret-1  пятновыводное средство  "]
["Hydret-2"]
["Hydret-3"]
["INGRALUX  наппирующий препарат с жирующим действием  "]
["LIVAL GL - черного цвета №22  краситель для гладкой кожи  "]
["LIVAL GLF"]
["LIVAL LICKER KONZ"]
["LIVAL LO"]
["LIVAL VLF"]
["LIVAL VLF NEW"]
["Liguisan  Жидкий щелочной концентрат для улучшения результатов стирки  "]
["Lival Color GL"]
["Lival LM"]
["NAPPALAN 87 AG"]
["Neutrol A"]
["Neutrol L  Нейтрализатор  "]
["Nostat ASN"]
["Novaclin Fresh KE"]
["Novoclin Fresh AN  усилитель  "]
["Nubuk finish 86"]
["OLISSO Power  Жидкое моющее ср-во для текстильных изделий  "]
["Odosorb Spray"]
["Oxyplex"]
["PERSTABILIZATOR"]
["Penta aktiv"]
["Pentasol Ultra  Активатор для удаления сильных загрязнений  "]
["Piuma Clean"]
["Polysol light"]
["Preperc пятновыводное средство"]
["RepairX Glue 20мл  клей для кожи  "]
["SUPER NAPPANTE"]
["Tenapre Exquisit"]
["Teppich-clean"]
["Toglisudore пятновыводка"]
["Top H"]
["V 1"]
["V 2"]
["V 3  пятновыводное средство  "]
["Viva OLEO"]
["Viva Starch"]
["Viva Zum"]
["WetX Z Licker"]
["ZEFIR SEC"]
["Zeitz-Komplet Set 7*0,25мл  набор пятновыводных средств  "]
["Айяче  отбеливатель для стирки  "]
["Активированный уголь BLC LO12x40  фракц, 1-3 мм   "]
["Ариель"]
["Ас Мульти"]
["Белизна"]
["Био-био Средство для предварительной зачистки текстиля перед стиркой, аквачисткой"]
["Валик  ролик   липкий сменный Plik"]
["Валик ролик   липкий с ручкой"]
["Ваниш"]
["Вернис брил"]
["Вернис глос"]
["Вернис натурел матов"]
["Вешалка 2,3 мм с белым напылением 500шт.  "]
["Деприт 1"]
["Деприт 2"]
["Деприт 3"]
["Детерженте пьюмони LA 31010  Средство для стирки пуховых изделий в воде  "]
["Директ старк"]
["Дистил"]
["Клин Ап"]
["Клип Конц Асепт"]
["Клип Мульти"]
["Колор Дайм Beige"]
["Колор Дайм light brown"]
["Колор Дайм бордовый  Краситель для замши  "]
["Колор Дайм бургунди"]
["Колор Дайм желтый золото"]
["Колор Дайм зеленый"]
["Колор Дайм коричневый светлый  Краситель для замши  "]
["Колор Дайм коричневый темный  Краситель для замши  "]
["Колор Дайм красный"]
["Колор Дайм оранжевый"]
["Колор Дайм охра  Краситель для замши  "]
["Колор Дайм серый  Краситель для замши  "]
["Колор Дайм синий  Краситель для замши  "]
["Колор Дайм черный  Краситель для замши  "]
["Колор Хромо Софт бургунди"]
["Колор Хромо Софт жёлтый лимон"]
["Колор Хромо Софт желто-золото"]
["Колор Хромо Софт зелёный"]
["Колор Хромо Софт коричневый"]
["Колор Хромо Софт красная вишня  Краситель для гладкой кожи  "]
["Колор Хромо Софт оранж"]
["Колор Хромо Софт охра  Краситель для гладкой кожи  "]
["Колор Хромо Софт пурпурный"]
["Колор Хромо Софт светло-красный"]
["Колор Хромо Софт синий"]
["Колор Хромо Софт черный  Краситель для гладкой кожи  "]
["Колор Хромо софт белый"]
["Колор дайм"]
["Колор хромо софт бордово-малиновый"]
["Колор хромо софт красный"]
["Колордайм  Краска для замши    бежевый"]
["Колофикс  предотвращает и удаляет закрасы в водной среде  "]
["Краситель для окраски меха в ручную"]
["Краска для гладкой кожи Хромософт белый  1кг  "]
["Ланадол Авант"]
["Ланадол Актив"]
["Ланадол Апрет"]
["Ланадол Ликер"]
["Ленор"]
["Маркировочная лента"]
["Нубук финиш 86"]
["Нью колор велюр"]
["Олеодерм"]
["Перхлорэтилен"]
["Пренет А"]
["Пренет В"]
["Пренет Пур"]
["Пренет С"]
["Пьюма специальный  препарат кондиционер для аквачистки пуховых изделий  "]
["Пьюмино 18010 LA  Смягчитель для тканей  "]
["Рикончанте амано базе экстра  конц,жирующее  "]
["Сграсанте пер аква TS 27010  Препарат для удаления жировых пятен на текстиле, коже в воде  "]
["Скаттанте антипьега  Ополаскиватель  , Облегчает глажение"]
["Скрепки для степлера Bostitch P3"]
["Степлер Bostitch P3"]
["Титаник LA 20010  Зачистное средство для удаления в вод, среде загрязнений любого типа  "]
["Унистил"]
["Фисаторе нью колор велюр"]
["Хромософт"]
["Шуеде плюс"]
["Эссенция аква  Концентрированная освежающая эссенция для стирки  "]
["Делавон Сол"]
["Био Зим"]
["Биоксиджен"]
["Плума Винд"]
["ПЛума Софт АП"]
["Импертекс ЗЭД"]
["Декап"]
["Viva oxy"]
["Ariel Delta"]
["Ariel Additive Super D 3,1"]
["Ariel Additive Super B 2,1"]
["Lenor Ariel"]
["Налатоп"]
["Стакофлекс"]
["ДАСТ, порошковые блестки"]
["золотой цвет"]
["перламутровый цвет"]
["А-Стронг"]
["Фиссаторе Лана"]
["Тинта соттоне черный"]
["Тинта соттоне синии"]
["Тинта соттоне синий джинс"]
["Пенетранте"]
[0]
[0]
[0]
[0]
[0]
[0]
[0]
[0]
[0]
[0]
[0]
[0]
[0]
[0]
[0]
[0]
[0]
[0]
[0]
[0]
[0]
[0]
[0]
[0]
[0]
[0]
[0]
[0]
[0]
[0]
[0]
[0]
[0]
[0]
[0]
[0]
[0]
[0]
[0]
[0]
[0]
[0]
[0]
[0]
[0]
[0]
[0]
[0]
[0]
[0]
[0]
[0]
[0]
[0]
[0]
[0]
[0]
[0]
[0]
[0]
[0]
[0]
[0]
[0]
[0]
[0]
[0]
[0]
[0]
[0]
[0]
[0]
[0]
[0]
[0]
[0]
[0]
[0]
[0]
[0]
[0]
[0]
[0]
[0]
[0]
[0]
[0]
[0]
[0]
[0]
[0]
[0]
[0]
[0]
[0]
[0]
[0]
[0]
[0]
[0]
[0]
[0]
[0]
[0]
[0]
[0]
[0]
[0]
[0]
[0]
[0]
[0]
[0]
[0]
[0]
[0]
[0]
[0]
[0]
[0]
[0]
[0]
[0]
[0]
[0]
[0]
[0]
[0]
[0]
[0]
[0]
[0]
[0]
[0]
[0]
[0]
[0]
[0]
[0]
[0]
[0]
[0]
[0]
[0]
[0]
[0]
[0]
[0]
[0]
[0]
[0]
[0]
[0]
[0]
[0]
[0]
[0]
[0]
[0]
[0]
[0]
[0]
[0]
[0]
[0]
[0]
[0]
[0]
[0]
[0]
[0]
[0]
[0]
[0]
[0]
[0]
[0]
[0]
[0]
[0]
[0]
[0]
[0]
[0]
[0]
[0]
[0]
[0]
[0]
[0]
[0]
[0]
[0]
[0]
[0]
[0]
[0]
[0]
[0]
[0]
[0]
[0]
[0]
[0]
[0]
[0]
[0]
[0]
[0]
[0]
[0]
[0]
[0]
[0]
[0]
[0]
[0]
[0]
[0]
[0]
[0]
[0]
[0]
[0]
[0]
[0]
[0]
[0]
[0]
[0]
[0]
[0]
[0]
[0]
[0]
[0]
[0]
[0]
[0]
[0]
[0]
[0]
[0]
[0]
[0]
[0]
[0]
[0]
[0]
[0]
[0]
[0]
[0]
[0]
[0]
[0]
[0]
[0]
[0]
[0]
[0]
[0]
[0]
[0]
[0]
[0]
[0]
[0]
[0]
[0]
[0]
[0]
[0]
[0]
[0]
[0]
[0]
[0]
[0]
[0]
[0]
[0]
[0]
[0]
[0]
[0]
[0]
[0]
[0]
[0]
[0]
[0]
[0]
[0]
[0]
[0]
[0]
[0]
[0]
[0]
[0]
[0]
[0]
[0]
[0]
[0]
[0]
[0]
[0]
[0]
[0]
[0]
[0]
[0]
[0]
[0]
[0]
[0]
[0]
[0]
[0]
[0]
[0]
[0]
[0]
[0]
[0]
[0]
[0]
[0]
[0]
[0]
[0]
[0]